Workbook

Sheet Sheet1
A2: 2012 7 CFR 1951-R - RURAL DEVELOPMENT LOAN SERVICING
C3: OMB CONTROL NO. 0570-0015
D7: Estimated | E7: Reports | F7: Total Annual | G7: Estimated No. | H7: Estimated
A8: Section of | B8: Title | C8: Form No. | D8: Number of | E8: Filed | F8: Responses | G8: of Manhours | H8: total Manhours | I8: Wage | J8: Total Cost
A9: Regulation | C9: (if any) | D9: Respondents | E9: Annually | F9: (D) X (E) | G9: per response | H9: (F) X (G) | I9: Class | J9: (H) X (I)
A10: (A) | B10: (B) | C10: (C) | D10: (D) | E10: (E) | F10: (F) | G10: (G) | H10: (H) | I10: (I) | J10: (J)
A12: REPORTING REQUIREMENTS - NO FORMS
A14: 1951.860(a)(3)(i) | B14: Weighted average | C14: written | D14: 6 | E14: 1 | F14: =SUM(D14*E14) -> 6 | G14: 3.0 | H14: =SUM(F14*G14) -> 18 | I14: $100 | J14: =SUM(H14*I14) -> $1,800
A15: 1951.877(a)(7)(i) | B15: Insurance | C15: assignment | D15: 465 | E15: 1 | F15: 465 | G15: 1.0 | H15: =SUM(F15*G15) -> 465 | I15: $100 | J15: $46,500
A16: 1951.882(a) | B16: Intermediary visitations | C16: meeting | D16: 465 | E16: 1 | F16: 465 | G16: 4.5 | H16: 2092.5 | I16: $100 | J16: $209,250
A17: 1951.882(b) | B17: Audited financial statement | C17: written | D17: 465 | E17: 1 | F17: 465 | G17: .5 | H17: 232.5 | I17: $100 | J17: $23,250
A18: 1951.883(a)(3) | B18: Employment/income | C18: written | D18: 465 | E18: 1 | F18: 465 | G18: 1.5 | H18: 697.5 | I18: $100 | J18: $69,750
A19: 1951.883(a)(4) | B19: Proposed budget | C19: written | D19: 465 | E19: 1 | F19: 465 | G19: 2.5 | H19: 1162.5 | I19: $100 | J19: $116,250
A20: 1951.883(b) | B20: Intermediary's report of loans | C20: written | D20: 465 | E20: on occasion | F20: 465 | G20: 1.0 | H20: 465 | I20: $100 | J20: =H20*I20 -> $46,500
B21: 90 days in arrears
A22: 1951.889(c) | B22: Assumption Agreement | C22: written | D22: 11 | E22: 1 | F22: =SUM(D22*E22) -> 11 | G22: 3.5 | H22: =SUM(F22*G22) -> 38.5 | I22: $100 | J22: =SUM(H22*I22) -> $3,850
A23: 1951.889(d) | B23: Transferee financial statement | C23: written | D23: 11 | E23: 1 | F23: =SUM(D23*E23) -> 11 | G23: .5 | H23: =SUM(F23*G23) -> 5.5 | I23: $100 | J23: =SUM(H23*I23) -> $550
A25: REPORTING REQUIREMENTS - FORM
A27: 1951.883(a)(2)(iii) | B27: IRP Lending Activity | C27: 1951-4
B28: Report
B29: IRP borrower | D29: 445 | E29: 4 | F29: =SUM(D29*E29) -> 1780 | G29: 4.0 | H29: =SUM(F29*G29) -> 7120 | I29: $100 | J29: =SUM(H29*I29) -> $712,000
B30: RDLF borrower | D30: 20 | E30: 2 | F30: =SUM(D30*E30) -> 40 | G30: 4.0 | H30: =SUM(F30*G30) -> 160 | I30: $100 | J30: =SUM(H30*I30) -> $16,000
B32: TOTAL DOCKET | F32: =SUM(F11:F31) -> 4,638 | H32: =SUM(H11:H30) -> 12,457 | J32: =SUM(J11:J30) -> $1,245,700

Sheet Sheet2

Sheet Sheet3

Sheet Sheet4

Sheet Sheet5

Sheet Sheet6

Sheet Sheet7

Sheet Sheet8

Sheet Sheet9

Sheet Sheet10

Sheet Sheet11

Sheet Sheet12

Sheet Sheet13

Sheet Sheet14

Sheet Sheet15

Sheet Sheet16
